[Event "DVM U10 2024"]
[Site "Duesseldorf"]
[Date "2024.12.27"]
[Round "2"]
[White "Horn, Philipp"]
[Black "Dintinger, Ata Lucien"]
[Result "1/2-1/2"]
[ECO "C47"]
[WhiteElo "988"]
[BlackElo "1511"]
[Annotator "NA RC"]
[PlyCount "155"]
[EventDate "2024.12.23"]
[EventType "team-tourn"]
[EventRounds "7"]
[EventCountry "GER"]
[SourceTitle "playchess.com"]
[Source "ChessBase"]
[SourceQuality "1"]
[TimeControl "3300+5"]

1. e4 {[%emt 0:00:01]} e5 {[%emt 0:00:01]} 2. Nf3 {[%emt 0:00:07]} Nc6 {[%emt 0:00:10]} 3. d4 {[%emt 0:00:05]} exd4 {[%emt 0:00:07]} 4. Nxd4 {[%emt 0:00:16]} Nf6 {[%emt 0:00:02]} 5. Nc3 {[%emt 0:00:08]} Bb4 {[%emt 0:00:05]} 6. Nxc6 {[%emt 0:00:07]} bxc6 {[%emt 0:00:06]} 7. Bd3 {[%emt 0:00:17]} d5 {[%emt 0:00:26]} 8. exd5 {[%emt 0:00:15]} cxd5 {[%emt 0:00:08]} 9. O-O {[%emt 0:00:07]} O-O {[%emt 0:00:07]} 10. Bg5 {[%emt 0:01:54]} c6 {[%emt 0:00:27]} 11. Qf3 {[%emt 0:00:16]} Be7 {[%emt 0:00:09]} 12. Rfe1 {[%emt 0:00:50]} Be6 {[%emt 0:00:14]} 13. Ne2 {[%emt 0:00:28]} Rb8 {[%emt 0:01:46]} 14. b3 {[%emt 0:00:32]} Re8 {[%emt 0:01:58]} 15. Nf4 {[%emt 0:00:23]} Bg4 {[%emt 0:01:30]} 16. Qg3 {[%emt 0:00:24]} h6 {[%emt 0:00:35]} 17. Bxf6 {[%emt 0:00:18]} Bxf6 {[%emt 0:00:09]} 18. Qxg4 {[%emt 0:00:16]} Bxa1 {[%emt 0:00:09]} 19. Rxa1 {[%emt 0:00:45]} Qf6 {[%emt 0:00:16]} 20. Rf1 {[%emt 0:00:58]} Re7 {[%emt 0:03:05]} 21. Nh5 {[%emt 0:01:00]} Qc3 {[%emt 0:01:01]} 22. h3 {[%emt 0:00:51]} Rbe8 {[%emt 0:02:17]} 23. a4 {[%emt 0:01:41]} Re1 {[%emt 0:04:08]} 24. Rxe1 {[%emt 0:04:35]} Rxe1+ {[%emt 0:00:37]} 25. Bf1 {[%emt 0:00:09]} Re4 {[%emt 0:01:10]} 26. Qc8+ {[%emt 0:01:32]} Kh7 {[%emt 0:00:33]} 27. Bd3 {[%emt 0:00:18]} Qa1+ {[%emt 0:00:42]} 28. Kh2 {[%emt 0:00:16]} Qe5+ {[%emt 0:00:24]} 29. Ng3 {[%emt 0:00:35]} h5 {[%emt 0:03:05]} 30. Bxe4+ {[%emt 0:00:16]} dxe4 {[%emt 0:00:28]} 31. Qf5+ {[%emt 0:01:00]} Qxf5 {[%emt 0:00:03]} 32. Nxf5 {[%emt 0:00:09]} Kg6 {[%emt 0:00:02]} 33. Ne3 {[%emt 0:00:14]} f5 {[%emt 0:00:19]} 34. Kg3 {[%emt 0:00:39]} Kf6 {[%emt 0:00:23]} 35. Kf4 {[%emt 0:00:23]} g5+ {[%emt 0:00:11]} 36. Kg3 {[%emt 0:00:37]} f4+ {[%emt 0:00:07]} 37. Kh2 {[%emt 0:00:13]} fxe3 {[%emt 0:00:04]} 38. fxe3 {[%emt 0:00:03]} h4 {[%emt 0:00:26]} 39. g4 {[%emt 0:00:58]} Ke5 {[%emt 0:00:08]} 40. Kg2 {[%emt 0:00:12]} Kd5 {[%emt 0:00:15]} 41. Kf2 {[%emt 0:00:10]} Kc5 {[%emt 0:00:18]} 42. Ke2 {[%emt 0:00:06]} Kb4 {[%emt 0:00:53]} 43. Kd2 {[%emt 0:00:48]} a5 {[%emt 0:00:18]} 44. Kc1 {[%emt 0:01:30]} Kc3 {[%emt 0:00:24]} 45. Kb1 {[%emt 0:00:38]} Kd2 {[%emt 0:00:06]} 46. b4 {[%emt 0:00:54]} Kxe3 {[%emt 0:00:14]} 47. b5 {[%emt 0:00:11]} cxb5 {[%emt 0:00:33]} 48. axb5 {[%emt 0:00:12]} Kd2 {[%emt 0:00:02]} 49. b6 {[%emt 0:00:07]} e3 {[%emt 0:00:01]} 50. b7 {[%emt 0:00:06]} e2 {[%emt 0:00:04]} 51. b8=Q {[%emt 0:00:55]} e1=Q+ {[%emt 0:00:32]} 52. Ka2 {[%emt 0:01:04]} Qe6+ {[%emt 0:00:14]} 53. Kb1 {[%emt 0:01:21]} Qe1+ {[%emt 0:00:33]} 54. Ka2 {[%emt 0:00:22]} Kxc2 {[%emt 0:00:11]} 55. Qb3+ {[%emt 0:01:04]} Kd2 {[%emt 0:00:26]} 56. Qd5+ {[%emt 0:00:36]} Kc2 {[%emt 0:00:27]} 57. Qb3+ {[%emt 0:00:12]} Kd2 {[%emt 0:00:16]} 58. Qd5+ {[%emt 0:00:13]} Ke2 {[%emt 0:00:24]} 59. Qxg5 {[%emt 0:00:43]} Kf3 {[%emt 0:00:10]} 60. Qf5+ {[%emt 0:00:39]} Kg3 {[%emt 0:00:19]} 61. g5 {[%emt 0:00:21]} Qd2+ {[%emt 0:00:11]} 62. Kb3 {[%emt 0:02:05]} Qb4+ {[%emt 0:00:26]} 63. Ka2 {[%emt 0:01:14]} a4 {[%emt 0:01:01]} 64. Qg4+ {[%emt 0:00:54]} Qxg4 {[%emt 0:00:07]} 65. hxg4 {[%emt 0:00:14]} h3 {[%emt 0:00:09]} 66. g6 {[%emt 0:00:19]} h2 {[%emt 0:00:05]} 67. g7 {[%emt 0:00:04]} h1=Q {[%emt 0:00:08]} 68. g8=Q {[%emt 0:00:12]} Qc1 {[%emt 0:01:16]} 69. Qg7 {[%emt 0:00:29]} Qc2+ {[%emt 0:00:29]} 70. Qb2 {[%emt 0:00:19]} Qc4+ {[%emt 0:00:07]} 71. Ka3 {[%emt 0:01:24]} Qxg4 {[%emt 0:00:56]} 72. Qb4 {[%emt 0:00:40]} Qf3+ {[%emt 0:00:49]} 73. Kxa4 {[%emt 0:00:18]} Qa8+ {[%emt 0:00:06]} 74. Qa5 {[%emt 0:00:19]} Qe8+ {[%emt 0:00:19]} 75. Qb5 {[%emt 0:00:38]} Qe4+ {[%emt 0:00:18]} 76. Qb4 {[%emt 0:00:09]} Qc2+ {[%emt 0:00:06]} 77. Qb3+ {[%emt 0:00:15]} Qxb3+ {[%emt 0:00:09]} 78. Kxb3 {[%emt 0:00:08]} 1/2-1/2

[Event "DVM U10 2024"]
[Site "Duesseldorf"]
[Date "2024.12.27"]
[Round "2"]
[White "Kolesnikoff, Christophe"]
[Black "Gerhardt, Noah"]
[Result "1/2-1/2"]
[ECO "C46"]
[WhiteElo "980"]
[BlackElo "1140"]
[Annotator "NA RC"]
[PlyCount "60"]
[EventDate "2024.12.23"]
[EventType "team-tourn"]
[EventRounds "7"]
[EventCountry "GER"]
[SourceTitle "playchess.com"]
[Source "ChessBase"]
[SourceQuality "1"]
[TimeControl "3300+5"]

1. e4 {[%emt 0:00:03]} e5 {[%emt 0:00:04]} 2. Nf3 {[%emt 0:00:08]} Nc6 {[%emt 0:00:05]} 3. Nc3 {[%emt 0:00:13]} Bc5 {[%emt 0:00:07]} 4. Nxe5 {[%emt 0:00:24]} Nxe5 {[%emt 0:00:10]} 5. d4 {[%emt 0:00:09]} Bd6 {[%emt 0:00:06]} 6. dxe5 {[%emt 0:00:10]} Bxe5 {[%emt 0:00:08]} 7. Bc4 {[%emt 0:00:13]} Nf6 {[%emt 0:00:30]} 8. Bg5 {[%emt 0:00:30]} h6 {[%emt 0:00:09]} 9. Bh4 {[%emt 0:00:13]} O-O {[%emt 0:00:16]} 10. Nd5 {[%emt 0:00:19]} Bxb2 {[%emt 0:00:49]} 11. Nxf6+ {[%emt 0:00:50]} Bxf6 {[%emt 0:00:20]} 12. Bxf6 {[%emt 0:00:35]} Qxf6 {[%emt 0:00:10]} 13. Rb1 {[%emt 0:02:06]} Qc3+ {[%emt 0:00:21]} 14. Qd2 {[%emt 0:02:07]} Qxc4 {[%emt 0:00:14]} 15. Rb4 {[%emt 0:06:22]} Qxa2 {[%emt 0:00:50]} 16. O-O {[%emt 0:00:52]} Qe6 {[%emt 0:00:42]} 17. Qf4 {[%emt 0:00:59]} d6 {[%emt 0:00:23]} 18. Re1 {[%emt 0:00:42]} b6 {[%emt 0:00:44]} 19. e5 {[%emt 0:00:20]} Bb7 {[%emt 0:00:34]} 20. Rb3 {[%emt 0:01:51]} Qg6 {[%emt 0:00:36]} 21. Rg3 {[%emt 0:00:13]} dxe5 {[%emt 0:00:50]} 22. Qxe5 {[%emt 0:00:26]} Qh7 {[%emt 0:00:32]} 23. f4 {[%emt 0:01:28]} g6 {[%emt 0:00:22]} 24. h4 {[%emt 0:00:42]} Qg7 {[%emt 0:00:21]} 25. Qxg7+ {[%emt 0:01:46]} Kxg7 {[%emt 0:00:10]} 26. f5 {[%emt 0:00:16]} Kh7 {[%emt 0:02:01]} 27. fxg6+ {[%emt 0:00:26]} fxg6 {[%emt 0:00:29]} 28. Re7+ {[%emt 0:00:13]} Kh8 {[%emt 0:00:35]} 29. Rxg6 {[%emt 0:00:45]} Rac8 {[%emt 0:00:29]} 30. Rxh6+ {[%emt 0:00:41]} Kg8 {[%emt 0:02:00]} 1/2-1/2

[Event "DVM U10 2024"]
[Site "Duesseldorf"]
[Date "2024.12.27"]
[Round "2"]
[White "Grabein, Clemens"]
[Black "Tschötsch, Hugo"]
[Result "0-1"]
[ECO "B50"]
[WhiteElo "958"]
[BlackElo "1110"]
[Annotator "NA RC"]
[PlyCount "31"]
[EventDate "2024.12.23"]
[EventType "team-tourn"]
[EventRounds "7"]
[EventCountry "GER"]
[SourceTitle "playchess.com"]
[Source "ChessBase"]
[SourceQuality "1"]
[TimeControl "3300+5"]

1. e4 {[%emt 0:00:01]} c5 {[%emt 0:00:03]} 2. Nc3 {[%emt 0:00:06]} e6 {[%emt 0:00:06]} 3. Nf3 {[%emt 0:00:09]} d6 {[%emt 0:00:09]} 4. Bb5+ {[%emt 0:00:24]} Nd7 {[%emt 0:00:13]} 5. d3 {[%emt 0:00:22]} a6 {[%emt 0:00:10]} 6. Ba4 {[%emt 0:00:49]} b5 {[%emt 0:00:07]} 7. Bb3 {[%emt 0:00:38]} Ngf6 {[%emt 0:00:25]} 8. a3 {[%emt 0:00:18]} Be7 {[%emt 0:00:57]} 9. O-O {[%emt 0:00:37]} O-O {[%emt 0:00:16]} 10. Bg5 {[%emt 0:01:03]} Bb7 {[%emt 0:01:22]} 11. Bf4 {[%emt 0:01:32]} Rc8 {[%emt 0:03:46]} 12. Bg5 {[%emt 0:01:07]} h6 {[%emt 0:01:58]} 13. Bh4 {[%emt 0:00:14]} d5 {[%emt 0:03:52]} 14. Bxf6 {[%emt 0:01:46]} Nxf6 {[%emt 0:00:16]} 15. e5 {[%emt 0:01:06]} Nd7 {[%emt 0:00:54]} 16. Qe1 {[%emt 0:02:09]} 0-1

[Event "DVM U10 2024"]
[Site "Duesseldorf"]
[Date "2024.12.27"]
[Round "2"]
[White "Krupp, Jonathan"]
[Black "Hu, Yinuo"]
[Result "0-1"]
[ECO "D37"]
[WhiteElo "941"]
[BlackElo "1495"]
[Annotator "NA RC"]
[PlyCount "112"]
[EventDate "2024.12.23"]
[EventType "team-tourn"]
[EventRounds "7"]
[EventCountry "GER"]
[SourceTitle "playchess.com"]
[Source "ChessBase"]
[SourceQuality "1"]
[TimeControl "3300+5"]

1. d4 {[%emt 0:00:01]} d5 {[%emt 0:00:05]} 2. c4 {[%emt 0:00:01]} e6 {[%emt 0:00:16]} 3. Nc3 {[%emt 0:00:07]} Nf6 {[%emt 0:00:24]} 4. Nf3 {[%emt 0:00:14]} Be7 {[%emt 0:00:46]} 5. Bf4 {[%emt 0:00:17]} Nbd7 {[%emt 0:00:37]} 6. e3 {[%emt 0:00:27]} O-O {[%emt 0:00:31]} 7. cxd5 {[%emt 0:00:08]} exd5 {[%emt 0:00:25]} 8. Bd3 {[%emt 0:00:15]} b6 {[%emt 0:01:17]} 9. O-O {[%emt 0:00:27]} Bb7 {[%emt 0:00:36]} 10. Bg5 {[%emt 0:00:31]} c5 {[%emt 0:01:30]} 11. Ne5 {[%emt 0:00:27]} Ne8 {[%emt 0:01:47]} 12. Qh5 {[%emt 0:00:56]} h6 {[%emt 0:00:27]} 13. Nxd7 {[%emt 0:02:27]} Qxd7 {[%emt 0:00:42]} 14. Bf4 {[%emt 0:02:17]} Nf6 {[%emt 0:00:33]} 15. Qh4 {[%emt 0:00:59]} Ne4 {[%emt 0:01:51]} 16. Qh5 {[%emt 0:01:11]} Nf6 {[%emt 0:00:36]} 17. Qf3 {[%emt 0:01:16]} c4 {[%emt 0:01:20]} 18. Bc2 {[%emt 0:00:38]} Bd6 {[%emt 0:00:52]} 19. Bg3 {[%emt 0:01:37]} Bxg3 {[%emt 0:02:03]} 20. fxg3 {[%emt 0:00:51]} Qg4 {[%emt 0:01:30]} 21. Qf2 {[%emt 0:00:51]} Rfe8 {[%emt 0:02:13]} 22. h3 {[%emt 0:02:00]} Qe6 {[%emt 0:01:04]} 23. Qf4 {[%emt 0:03:05]} Qxe3+ {[%emt 0:00:59]} 24. Qxe3 {[%emt 0:00:36]} Rxe3 {[%emt 0:00:07]} 25. Kf2 {[%emt 0:00:40]} Re7 {[%emt 0:00:41]} 26. Nb5 {[%emt 0:01:21]} Ba6 {[%emt 0:01:57]} 27. Nd6 {[%emt 0:01:21]} Re6 {[%emt 0:00:44]} 28. Nf5 {[%emt 0:01:09]} c3 {[%emt 0:00:31]} 29. Rab1 {[%emt 0:02:41]} Bxf1 {[%emt 0:00:10]} 30. Kxf1 {[%emt 0:00:57]} cxb2 {[%emt 0:00:42]} 31. Rxb2 {[%emt 0:00:15]} Rc8 {[%emt 0:01:38]} 32. g4 {[%emt 0:01:23]} Ne4 {[%emt 0:01:55]} 33. Ba4 {[%emt 0:01:33]} Rc1+ {[%emt 0:01:09]} 34. Ke2 {[%emt 0:00:28]} Nc5+ {[%emt 0:00:41]} 35. Kd2 {[%emt 0:00:27]} Nxa4 {[%emt 0:00:09]} 36. Kxc1 {[%emt 0:00:49]} Nxb2 {[%emt 0:00:12]} 37. Kxb2 {[%emt 0:00:08]} a5 {[%emt 0:00:25]} 38. Kb3 {[%emt 0:00:13]} b5 {[%emt 0:00:15]} 39. a4 {[%emt 0:00:51]} b4 {[%emt 0:00:10]} 40. g3 {[%emt 0:00:36]} Re4 {[%emt 0:00:28]} 41. Kb2 {[%emt 0:00:44]} Kh7 {[%emt 0:00:17]} 42. Kc2 {[%emt 0:00:51]} g6 {[%emt 0:00:35]} 43. Nd6 {[%emt 0:01:06]} Rxd4 {[%emt 0:00:17]} 44. Nxf7 {[%emt 0:00:22]} Rc4+ {[%emt 0:01:08]} 45. Kb3 {[%emt 0:00:45]} Rc3+ {[%emt 0:00:00]} 46. Kb2 {[%emt 0:00:36]} d4 {[%emt 0:00:00]} 47. Ne5 {[%emt 0:00:12]} d3 {[%emt 0:00:00]} 48. Nf3 {[%emt 0:00:40]} Kg7 {[%emt 0:00:08]} 49. h4 {[%emt 0:00:10]} Kf6 {[%emt 0:00:09]} 50. g5+ {[%emt 0:00:47]} hxg5 {[%emt 0:00:26]} 51. hxg5+ {[%emt 0:00:06]} Kf5 {[%emt 0:01:03]} 52. Nh4+ {[%emt 0:01:38]} Kxg5 {[%emt 0:00:17]} 53. Nf3+ {[%emt 0:02:16]} Kg4 {[%emt 0:00:17]} 54. Ne5+ {[%emt 0:00:33]} Kxg3 {[%emt 0:00:08]} 55. Nxg6 {[%emt 0:00:11]} d2 {[%emt 0:00:16]} 56. Ne5 {[%emt 0:00:24]} d1=Q {[%emt 0:00:20]} 0-1

[Event "DVM U10 2024"]
[Site "Duesseldorf"]
[Date "2024.12.27"]
[Round "2"]
[White "Seitov, Adela"]
[Black "Sandal, Ilyas"]
[Result "0-1"]
[ECO "C50"]
[WhiteElo "911"]
[BlackElo "943"]
[Annotator "NA RC"]
[PlyCount "72"]
[EventDate "2024.12.23"]
[EventType "team-tourn"]
[EventRounds "7"]
[EventCountry "GER"]
[SourceTitle "playchess.com"]
[Source "ChessBase"]
[SourceQuality "1"]
[TimeControl "3300+5"]

1. e4 {[%emt 0:00:01]} e5 {[%emt 0:00:04]} 2. Nf3 {[%emt 0:00:06]} Nc6 {[%emt 0:00:06]} 3. Bc4 {[%emt 0:00:04]} Bc5 {[%emt 0:00:07]} 4. Nc3 {[%emt 0:00:05]} Nf6 {[%emt 0:00:07]} 5. d3 {[%emt 0:00:06]} h6 {[%emt 0:00:04]} 6. Be3 {[%emt 0:00:09]} Bb6 {[%emt 0:00:07]} 7. a4 {[%emt 0:00:33]} a5 {[%emt 0:00:33]} 8. Bxb6 {[%emt 0:00:44]} cxb6 {[%emt 0:00:06]} 9. Bb5 {[%emt 0:00:09]} d6 {[%emt 0:00:44]} 10. d4 {[%emt 0:00:18]} O-O {[%emt 0:00:48]} 11. d5 {[%emt 0:00:29]} Ne7 {[%emt 0:00:36]} 12. Nh4 {[%emt 0:01:19]} Bd7 {[%emt 0:00:52]} 13. Bd3 {[%emt 0:00:15]} Rc8 {[%emt 0:00:30]} 14. Nf5 {[%emt 0:00:08]} Bxf5 {[%emt 0:00:25]} 15. exf5 {[%emt 0:00:13]} Nexd5 {[%emt 0:00:46]} 16. Nxd5 {[%emt 0:00:34]} Nxd5 {[%emt 0:00:10]} 17. Qe2 {[%emt 0:00:21]} Nf4 {[%emt 0:00:33]} 18. Qe4 {[%emt 0:00:27]} Nxd3+ {[%emt 0:05:57]} 19. Qxd3 {[%emt 0:00:00]} Re8 {[%emt 0:00:20]} 20. O-O {[%emt 0:00:14]} e4 {[%emt 0:00:12]} 21. Qd5 {[%emt 0:00:27]} Rxc2 {[%emt 0:00:39]} 22. Qxb7 {[%emt 0:00:12]} Rxb2 {[%emt 0:00:12]} 23. Rfe1 {[%emt 0:00:27]} d5 {[%emt 0:02:57]} 24. Re3 {[%emt 0:00:04]} Qh4 {[%emt 0:00:18]} 25. Rg3 {[%emt 0:00:30]} Qf4 {[%emt 0:00:42]} 26. Rf1 {[%emt 0:00:24]} Qxf5 {[%emt 0:00:47]} 27. Qc7 {[%emt 0:00:29]} Qe6 {[%emt 0:01:43]} 28. Qc3 {[%emt 0:00:12]} Qe5 {[%emt 0:00:29]} 29. Qe3 {[%emt 0:01:18]} d4 {[%emt 0:00:30]} 30. Qa3 {[%emt 0:00:29]} d3 {[%emt 0:00:30]} 31. f4 {[%emt 0:00:06]} Qd4+ {[%emt 0:00:24]} 32. Kh1 {[%emt 0:00:50]} d2 {[%emt 0:00:16]} 33. Qe3 {[%emt 0:02:04]} d1=Q {[%emt 0:00:36]} 34. Rxd1 {[%emt 0:00:09]} Qxd1+ {[%emt 0:00:09]} 35. Qg1 {[%emt 0:00:25]} Rb1 {[%emt 0:00:14]} 36. Qxd1 {[%emt 0:01:02]} Rxd1# {[%emt 0:00:08]} 0-1

[Event "DVM U10 2024"]
[Site "Duesseldorf"]
[Date "2024.12.27"]
[Round "2"]
[White "Riera Galmés, Lucia"]
[Black "Holzhäuser, Thibaut Lautaro"]
[Result "0-1"]
[ECO "C00"]
[WhiteElo "870"]
[BlackElo "955"]
[Annotator "NA RC"]
[PlyCount "56"]
[EventDate "2024.12.23"]
[EventType "team-tourn"]
[EventRounds "7"]
[EventCountry "GER"]
[SourceTitle "playchess.com"]
[Source "ChessBase"]
[SourceQuality "1"]
[TimeControl "3300+5"]

1. e4 {[%emt 0:00:01]} e6 {[%emt 0:00:02]} 2. Nf3 {[%emt 0:00:03]} d5 {[%emt 0:00:12]} 3. Nc3 {[%emt 0:00:26]} d4 {[%emt 0:00:12]} 4. Nb1 {[%emt 0:00:20]} Nc6 {[%emt 0:00:08]} 5. Bb5 {[%emt 0:00:21]} Bd7 {[%emt 0:00:25]} 6. d3 {[%emt 0:00:24]} h6 {[%emt 0:00:25]} 7. Bf4 {[%emt 0:00:42]} Bc5 {[%emt 0:01:51]} 8. Bxc6 {[%emt 0:00:30]} Bxc6 {[%emt 0:00:14]} 9. Be5 {[%emt 0:00:28]} Nf6 {[%emt 0:00:11]} 10. c3 {[%emt 0:00:51]} dxc3 {[%emt 0:00:39]} 11. Nxc3 {[%emt 0:00:11]} Ng4 {[%emt 0:01:23]} 12. d4 {[%emt 0:00:24]} Nxe5 {[%emt 0:00:19]} 13. Nxe5 {[%emt 0:00:21]} Qxd4 {[%emt 0:00:25]} 14. Qxd4 {[%emt 0:00:21]} Bxd4 {[%emt 0:00:14]} 15. O-O {[%emt 0:00:30]} Bxe5 {[%emt 0:00:08]} 16. Rfd1 {[%emt 0:00:12]} Bf6 {[%emt 0:00:22]} 17. h3 {[%emt 0:00:54]} Bxc3 {[%emt 0:00:24]} 18. bxc3 {[%emt 0:00:10]} Bxe4 {[%emt 0:00:12]} 19. Rac1 {[%emt 0:00:48]} Rd8 {[%emt 0:00:35]} 20. Rxd8+ {[%emt 0:00:21]} Kxd8 {[%emt 0:00:24]} 21. Rd1+ {[%emt 0:01:36]} Ke7 {[%emt 0:00:11]} 22. Re1 {[%emt 0:00:55]} Bc6 {[%emt 0:00:48]} 23. Kh2 {[%emt 0:00:24]} Rd8 {[%emt 0:00:21]} 24. Re2 {[%emt 0:00:13]} Rd3 {[%emt 0:00:36]} 25. Rc2 {[%emt 0:01:46]} Ba4 {[%emt 0:00:12]} 26. Re2 {[%emt 0:01:48]} Rxc3 {[%emt 0:00:37]} 27. Re4 {[%emt 0:00:40]} b5 {[%emt 0:00:31]} 28. Rg4 {[%emt 0:01:20]} g6 {[%emt 0:00:34]} 0-1

[Event "DVM U10 2024"]
[Site "Duesseldorf"]
[Date "2024.12.27"]
[Round "2"]
[White "Sengupta, Arjun"]
[Black "Luo, Milo"]
[Result "1-0"]
[ECO "B23"]
[WhiteElo "858"]
[BlackElo "1083"]
[Annotator "NA"]
[PlyCount "115"]
[EventDate "2024.12.23"]
[EventType "team-tourn"]
[EventRounds "7"]
[EventCountry "GER"]
[SourceTitle "playchess.com"]
[Source "ChessBase"]
[SourceQuality "1"]
[TimeControl "3300+5"]

1. e4 {[%emt 0:00:01]} c5 {[%emt 0:00:15]} 2. Nc3 {[%emt 0:00:09]} d6 {[%emt 0:01:06]} 3. Bb5+ {[%emt 0:00:13]} Bd7 {[%emt 0:00:38]} 4. Bc4 {[%emt 0:00:24]} Nf6 {[%emt 0:00:39]} 5. Nf3 {[%emt 0:00:12]} g6 {[%emt 0:00:55]} 6. Ng5 {[%emt 0:00:16]} e6 {[%emt 0:01:47]} 7. Nf3 {[%emt 0:00:16]} Bg7 {[%emt 0:01:22]} 8. e5 {[%emt 0:00:21]} dxe5 {[%emt 0:02:21]} 9. Nxe5 {[%emt 0:00:13]} Nc6 {[%emt 0:02:23]} 10. Nxc6 {[%emt 0:00:29]} Bxc6 {[%emt 0:00:19]} 11. O-O {[%emt 0:00:11]} O-O {[%emt 0:01:59]} 12. d3 {[%emt 0:00:09]} Qd6 {[%emt 0:05:05]} 13. a3 {[%emt 0:00:47]} Bd7 {[%emt 0:01:03]} 14. Bg5 {[%emt 0:00:15]} Rfe8 {[%emt 0:01:38]} 15. Nb5 {[%emt 0:00:27]} Qc6 {[%emt 0:01:42]} 16. Nc3 {[%emt 0:00:44]} e5 {[%emt 0:02:49]} 17. Bxf6 {[%emt 0:00:57]} Bxf6 {[%emt 0:00:16]} 18. Bb5 {[%emt 0:00:39]} Qe6 {[%emt 0:00:50]} 19. Bxd7 {[%emt 0:00:30]} Qxd7 {[%emt 0:00:13]} 20. h3 {[%emt 0:00:11]} Bd8 {[%emt 0:00:58]} 21. Qf3 {[%emt 0:01:51]} Rb8 {[%emt 0:00:55]} 22. Ne4 {[%emt 0:00:24]} Re6 {[%emt 0:02:41]} 23. Nxc5 {[%emt 0:00:23]} Qc6 {[%emt 0:01:32]} 24. Nxe6 {[%emt 0:00:15]} Qxe6 {[%emt 0:00:58]} 25. Rae1 {[%emt 0:00:19]} Bc7 {[%emt 0:00:49]} 26. d4 {[%emt 0:00:23]} f6 {[%emt 0:03:35]} 27. c3 {[%emt 0:00:38]} Qd6 {[%emt 0:00:12]} 28. Qg3 {[%emt 0:00:18]} exd4 {[%emt 0:01:08]} 29. Qxd6 {[%emt 0:00:19]} Bxd6 {[%emt 0:00:13]} 30. cxd4 {[%emt 0:00:09]} Kf7 {[%emt 0:00:27]} 31. g4 {[%emt 0:00:56]} f5 {[%emt 0:00:42]} 32. gxf5 {[%emt 0:00:15]} gxf5 {[%emt 0:00:06]} 33. Kh1 {[%emt 0:00:13]} Rg8 {[%emt 0:00:13]} 34. Rg1 {[%emt 0:00:20]} Rd8 {[%emt 0:00:16]} 35. d5 {[%emt 0:01:36]} Bc7 {[%emt 0:00:24]} 36. Kg2 {[%emt 0:00:28]} Rxd5 {[%emt 0:00:15]} 37. Rc1 {[%emt 0:00:32]} Bd6 {[%emt 0:00:10]} 38. Rcd1 {[%emt 0:00:59]} Rxd1 {[%emt 0:05:42]} 39. Rxd1 {[%emt 0:00:21]} Ke6 {[%emt 0:00:19]} 40. Re1+ {[%emt 0:00:19]} Kf6 {[%emt 0:01:33]} 41. Re8 {[%emt 0:00:34]} Kf7 {[%emt 0:00:44]} 42. Ra8 {[%emt 0:00:12]} Bc5 {[%emt 0:00:07]} 43. b4 {[%emt 0:00:15]} Bd4 {[%emt 0:00:18]} 44. Rb8 {[%emt 0:00:22]} b6 {[%emt 0:03:02]} 45. Rb7+ {[%emt 0:00:13]} Kg6 {[%emt 0:00:15]} 46. Rxa7 {[%emt 0:00:09]} b5 {[%emt 0:00:04]} 47. Rb7 {[%emt 0:00:30]} Bb2 {[%emt 0:01:10]} 48. Rxb5 {[%emt 0:00:17]} Bxa3 {[%emt 0:00:09]} 49. Rb6+ {[%emt 0:00:27]} Kg5 {[%emt 0:01:05]} 50. b5 {[%emt 0:00:32]} Bc5 {[%emt 0:00:45]} 51. Rc6 {[%emt 0:00:19]} Bb4 {[%emt 0:00:21]} 52. b6 {[%emt 0:00:20]} Bd2 {[%emt 0:00:41]} 53. b7 {[%emt 0:00:18]} Bf4 {[%emt 0:00:04]} 54. Rc8 {[%emt 0:00:36]} Kf6 {[%emt 0:00:15]} 55. b8=Q Bxb8 {[%emt 0:00:04]} 56. Rxb8 {[%emt 0:00:42]} Kg7 {[%emt 0:00:07]} 57. Rb6 {[%emt 0:00:17]} h6 {[%emt 0:00:04]} 58. Kg3 {[%emt 0:00:34]} 1-0

[Event "DVM U10 2024"]
[Site "Duesseldorf"]
[Date "2024.12.27"]
[Round "2"]
[White "Möller, Lia Sofie"]
[Black "Wüstenberg, Felix"]
[Result "0-1"]
[ECO "D02"]
[WhiteElo "829"]
[BlackElo "975"]
[Annotator "NA RC"]
[PlyCount "25"]
[EventDate "2024.12.23"]
[EventType "team-tourn"]
[EventRounds "7"]
[EventCountry "GER"]
[SourceTitle "playchess.com"]
[Source "ChessBase"]
[SourceQuality "1"]
[TimeControl "3300+5"]

1. d4 {[%emt 0:00:03]} d5 {[%emt 0:00:11]} 2. Bf4 {[%emt 0:00:25]} Bf5 {[%emt 0:00:15]} 3. e3 {[%emt 0:00:09]} Nf6 {[%emt 0:00:17]} 4. Nf3 {[%emt 0:00:07]} Nc6 {[%emt 0:00:34]} 5. Bd3 {[%emt 0:00:38]} Bg6 {[%emt 0:00:02]} 6. Nbd2 {[%emt 0:00:18]} e6 {[%emt 0:00:14]} 7. h3 {[%emt 0:00:30]} Bd6 {[%emt 0:00:11]} 8. Bh2 {[%emt 0:00:14]} O-O {[%emt 0:00:10]} 9. O-O {[%emt 0:00:06]} Nb4 {[%emt 0:00:47]} 10. Nb3 {[%emt 0:00:59]} Nxd3 {[%emt 0:00:36]} 11. cxd3 {[%emt 0:00:15]} Bh5 {[%emt 0:01:02]} 12. Qc2 {[%emt 0:01:26]} Qe7 {[%emt 0:03:10]} 13. Nbd2 {[%emt 0:00:38]} 0-1

[Event "DVM U10 2024"]
[Site "Duesseldorf"]
[Date "2024.12.27"]
[Round "2"]
[White "Schubert, Anton"]
[Black "Balla, Virinchi"]
[Result "0-1"]
[ECO "C50"]
[WhiteElo "824"]
[BlackElo "1123"]
[Annotator "NA RC"]
[PlyCount "24"]
[EventDate "2024.12.23"]
[EventType "team-tourn"]
[EventRounds "7"]
[EventCountry "GER"]
[SourceTitle "playchess.com"]
[Source "ChessBase"]
[SourceQuality "1"]
[TimeControl "3300+5"]

1. e4 {[%emt 0:00:06]} e5 {[%emt 0:00:08]} 2. Nf3 {[%emt 0:00:10]} Nc6 {[%emt 0:00:04]} 3. Bc4 {[%emt 0:00:18]} Bc5 {[%emt 0:00:01]} 4. Ng5 {[%emt 0:00:21]} Qxg5 {[%emt 0:00:16]} 5. d3 {[%emt 0:00:25]} Qxg2 {[%emt 0:00:30]} 6. Rf1 {[%emt 0:00:26]} Nf6 {[%emt 0:00:50]} 7. Nc3 {[%emt 0:00:29]} Ng4 {[%emt 0:01:04]} 8. f3 {[%emt 0:00:48]} Bf2+ {[%emt 0:01:11]} 9. Ke2 {[%emt 0:01:38]} Be3+ {[%emt 0:00:15]} 10. Ke1 {[%emt 0:00:47]} Bf2+ {[%emt 0:00:36]} 11. Ke2 {[%emt 0:00:25]} Bh4+ {[%emt 0:00:09]} 12. Rf2 {[%emt 0:00:35]} Qxf2# {[%emt 0:00:12]} 0-1